[Event "FRA-ch Youth 2017"]
[Site "Belfort"]
[Date "2017.04.22"]
[Round "8"]
[White "Travadon, Loic"]
[Black "Burri, Quentin"]
[Result "0-1"]
[ECO "A28"]
[WhiteElo "2348"]
[BlackElo "2372"]
[Annotator "NA"]
[PlyCount "68"]
[EventDate "2017.??.??"]
[EventCountry "FRA"]
[SourceTitle "playchess.com"]
[Source "ChessBase"]
[SourceQuality "1"]
[TimeControl "5400+30"]

1. c4 {[%emt 0:00:00]} Nf6 {[%emt 0:00:55]} 2. Nc3 {[%emt 0:00:00]} e5 {[%emt 0:00:25]} 3. Nf3 {[%emt 0:00:00]} Nc6 {[%emt 0:00:15]} 4. e3 {[%emt 0:00:00]} Bb4 {[%emt 0:01:28]} 5. Qc2 {[%emt 0:00:04]} Bxc3 {[%emt 0:00:29]} 6. Qxc3 {[%emt 0:00:05]} Qe7 {[%emt 0:00:11]} 7. d4 {[%emt 0:00:05] A28: English Opening: Four Knights Variation} (7. d3 O-O 8. Be2 d5 9. cxd5 Nxd5 10. Qc2 a5 11. O-O Rd8 12. a3 a4 13. Bd2 Rd6 14. Rfe1 Bg4 15. Bc3 {1-0 (42) Neiksans,A (2613)-Van Wely,L (2668) Jurmala 2017}) 7... Ne4 {[%emt 0:04:34]} 8. Qd3 {[%emt 0:00:05]} exd4 {[%emt 0:00:28] LiveBook: 13 Games} 9. Nxd4 {[%emt 0:00:12]} O-O {[%emt 0:01:01]} 10. Be2 {[%emt 0:00:24]} Qb4+ {[%emt 0:02:17]} 11. Kf1 {[%emt 0:00:06]} Qe7 {[%emt 0:01:19]} 12. f3 {[%emt 0:00:09]} Nc5 {[%emt 0:03:23]} 13. Qc3 $146 {[%emt 0:07:16]} (13. Nxc6 bxc6 14. Qc3 a5 {0-1 (40) Oms Pallisse,J (2527)-Pozo Vera,S (2461) Barcelona 2011}) 13... d6 {[%emt 0:08:46]} 14. Nxc6 {[%emt 0:01:16]} bxc6 {[%emt 0:00:06]} 15. Kf2 {[%emt 0:03:32]} a5 {[%emt 0:15:00]} 16. b3 {[%emt 0:05:05]} f5 {[%emt 0:06:17]} 17. Re1 {[%emt 0:03:25]} Be6 {[%emt 0:10:19]} 18. Bb2 {[%emt 0:01:13]} Rf6 {[%emt 0:03:57]} 19. Kg1 {[%emt 0:01:29]} Rg6 {[%emt 0:01:25]} 20. Bf1 {[%emt 0:02:50]} Nd7 {[%emt 0:04:00]} 21. g3 {[%emt 0:04:52]} h5 {[%emt 0:04:10]} 22. Qd4 {[%emt 0:11:41]} h4 {[%emt 0:06:16]} 23. Kf2 {[%emt 0:00:41]} hxg3+ {[%emt 0:02:16]} 24. hxg3 {[%emt 0:00:05]} c5 {[%emt 0:00:33]} 25. Qf4 {[%emt 0:02:19]} Nf6 {[%emt 0:03:07]} 26. Bd3 {[%emt 0:01:57]} Rf8 {[%emt 0:01:03]} 27. Qh4 $2 {[%emt 0:01:49]} (27. Rh1 $11) 27... Rh6 {[%emt 0:00:57]} 28. Bxf6 {[%emt 0:00:49]} Rfxf6 {[%emt 0:00:18]} 29. Qg5 $19 {[%emt 0:08:03]} Rh2+ {[%emt 0:01:35]} 30. Kf1 {[%emt 0:00:04]} Qf7 {[%emt 0:01:41]} 31. e4 {[%emt 0:03:27]} Rh5 {[%emt 0:05:15]} 32. Qe3 {[%emt 0:01:48]} f4 {[%emt 0:00:35]} 33. Qg1 {[%emt 0:03:27]} fxg3 {[%emt 0:00:31]} 34. Kg2 {[%emt 0:00:14]} Bh3+ {[%emt 0:00:34]} 0-1

[Event "FRA-ch Youth 2017"]
[Site "Belfort"]
[Date "2017.04.22"]
[Round "8"]
[White "Kambrath, Yannick"]
[Black "Jrade, Willis"]
[Result "1-0"]
[ECO "A50"]
[WhiteElo "2341"]
[BlackElo "2113"]
[Annotator "NA"]
[PlyCount "89"]
[EventDate "2017.??.??"]
[EventCountry "FRA"]
[SourceTitle "playchess.com"]
[Source "ChessBase"]
[SourceQuality "1"]
[TimeControl "5400+30"]

{[%evp 8,88,75,72,48,32767,44,32767,77,32767,32767,67,32767,32767,128,68,183,54,91,32767,106,110,150,175,187,162,32767,32767,333,231,32767,32767,32767,32767,32767,32767,518,32767,32767,32767,32767,32767,32767,379,428,32767,32767,32767,32767,32767,467,431,514,32767,32767,32767,554,32767,586,32767,32767,32767,32767,32767,32767,32767,32767,32767,1346,1631,29985,32767,32767,32767,29991,29992,32767,29992,29995,29996,29998,29999,29999]} 1. d4 {[%emt 0:05:24]} Nf6 {[%emt 0:00:02]} 2. c4 {[%emt 0:00:09]} g6 {[%emt 0:00:01]} 3. d5 {[%emt 0:00:08]} e5 {[%emt 0:12:42] E60: King's Indian: Unusual lines and Fianchetto Variation without Nc3} 4. Nc3 {[%emt 0:01:42]} Bc5 {[%emt 0:03:07]} 5. e4 $146 {[%emt 0:09:33]} (5. a3 O-O 6. Nf3 e4 7. Nd4 Re8 8. e3 c6 9. Be2 cxd5 10. cxd5 a6 11. b4 {0-1 (40) Bosboom,M (2451)-Nijboer,F (2567) Amsterdam 2002}) 5... d6 {[%emt 0:03:54]} 6. Be2 {[%emt 0:01:01]} c6 {[%emt 0:01:41]} 7. Nf3 {[%emt 0:02:13]} Bg4 {[%emt 0:12:07]} 8. O-O {[%emt 0:02:38]} Nbd7 {[%emt 0:01:09]} 9. Rb1 {[%emt 0:05:51]} a5 {[%emt 0:07:13]} 10. Bh6 {[%emt 0:02:54]} Nh5 {[%emt 0:09:45]} 11. Na4 {[%emt 0:11:30]} cxd5 {[%emt 0:05:26]} (11... Nf4 $14) 12. Nxc5 {[%emt 0:03:01]} ({But not} 12. Qxd5 $6 Nb6 13. Nxb6 (13. Qxb7 $2 Bc8 14. Qxa8 Nxa8 $19) 13... Qxb6 $14) ({White should play} 12. cxd5 $16 {Hoping for Bb5.} Bxf3 13. Bxf3) 12... Nxc5 {[%emt 0:01:19]} 13. cxd5 {[%emt 0:00:28]} f6 {[%emt 0:06:54]} 14. g3 {[%emt 0:09:52]} Rg8 {[%emt 0:05:51]} 15. Nd2 {[%emt 0:04:34]} Bxe2 {[%emt 0:02:36]} 16. Qxe2 {[%emt 0:00:04]} Qb6 {[%emt 0:00:50]} 17. Be3 {[%emt 0:02:26]} Ng7 {[%emt 0:05:21]} 18. Rfc1 {[%emt 0:08:11]} Qa6 {[%emt 0:04:03]} 19. Qxa6 {[%emt 0:03:38]} Nxa6 {[%emt 0:01:16]} 20. Nc4 {[%emt 0:00:04]} Nb4 {[%emt 0:02:30]} 21. a3 {[%emt 0:02:24]} Na2 {[%emt 0:01:47]} 22. Rd1 b5 {[%emt 0:01:00]} 23. Nb6 {[%emt 0:04:20]} Rb8 {[%emt 0:00:53]} 24. Ra1 {[%emt 0:00:16]} f5 {[%emt 0:00:36]} 25. f3 {[%emt 0:00:21]} Rf8 {[%emt 0:01:01]} 26. Kg2 {[%emt 0:01:46]} Rf7 {[%emt 0:01:49]} 27. Rxa2 {[%emt 0:00:05]} Rfb7 {[%emt 0:00:02]} 28. Rc1 {[%emt 0:00:09]} Rxb6 {[%emt 0:00:16]} 29. Bxb6 {[%emt 0:00:03]} Rxb6 {[%emt 0:00:03]} 30. Rc7 {[%emt 0:01:24]} Kf8 {[%emt 0:00:42]} 31. b4 {[%emt 0:00:39]} Ne8 {[%emt 0:00:32]} 32. Ra7 {[%emt 0:01:47]} axb4 {[%emt 0:01:09]} 33. axb4 {[%emt 0:00:15]} Nf6 {[%emt 0:00:05]} 34. Rc7 {[%emt 0:01:02]} Rb8 {[%emt 0:00:19]} 35. Raa7 {[%emt 0:00:06]} Kg8 {[%emt 0:00:19]} 36. Rg7+ {[%emt 0:00:12]} Kh8 {[%emt 0:00:05]} 37. Rgf7 {[%emt 0:00:06]} Nh5 {[%emt 0:00:17]} 38. exf5 {[%emt 0:00:21]} Rc8 {[%emt 0:00:30]} 39. Rxh7+ {[%emt 0:00:20]} Kg8 {[%emt 0:00:01]} 40. fxg6 {[%emt 0:00:16]} e4 {[%emt 0:00:42]} 41. Rxh5 {[%emt 0:00:38]} e3 {[%emt 0:00:36]} 42. Re7 {[%emt 0:00:34]} Rc2+ {[%emt 0:00:17]} 43. Kh3 {[%emt 0:00:16]} e2 {[%emt 0:00:05]} 44. g7 {[%emt 0:00:19]} e1=Q {[%emt 0:00:07]} 45. Rh8# 1-0

[Event "FRA-ch Youth 2017"]
[Site "Belfort"]
[Date "2017.04.22"]
[Round "8"]
[White "Lamard, Guillaume"]
[Black "Kern, Nicolas"]
[Result "1-0"]
[ECO "D18"]
[WhiteElo "2307"]
[BlackElo "2085"]
[Annotator "ChessBase"]
[PlyCount "68"]
[EventDate "2017.??.??"]
[EventCountry "FRA"]
[SourceTitle "playchess.com"]
[Source "ChessBase"]
[SourceQuality "1"]
[TimeControl "5400+30"]

1. d4 d5 2. c4 c6 3. Nf3 Nf6 4. Nc3 dxc4 5. a4 Bf5 6. e3 e6 7. Bxc4 Na6 8. O-O Nb4 9. Qe2 Be7 10. e4 Bg6 11. Bf4 Qa5 12. Rfd1 O-O 13. Nd2 Qh5 14. f3 Nc2 15. g4 Qh3 16. Qf2 Nxg4 17. fxg4 Qxg4+ 18. Bg3 Nxa1 19. Rxa1 Rad8 20. Re1 Qg5 21. Nb3 Rd7 22. h4 Qh6 23. Kh2 Kh8 24. Rf1 Rdd8 25. Kh3 Bh5 26. Bf4 Qf6 27. Qe1 h6 28. Be5 Qg6 29. Rg1 Qh7 30. Rxg7 Qxg7 31. Bxg7+ Kxg7 32. e5 Rg8 33. Bd3 f5 34. exf6+ Bxf6 1-0

[Event "FRA-ch Youth 2017"]
[Site "Belfort"]
[Date "2017.04.22"]
[Round "8"]
[White "Philippe, Guillaume"]
[Black "O'Sullivan, Thomas"]
[Result "1/2-1/2"]
[ECO "A04"]
[WhiteElo "2307"]
[BlackElo "2223"]
[Annotator "NA"]
[PlyCount "82"]
[EventDate "2017.??.??"]
[EventCountry "FRA"]
[SourceTitle "playchess.com"]
[Source "ChessBase"]
[SourceQuality "1"]
[TimeControl "5400+30"]

1. Nf3 {[%emt 0:00:00]} c5 {[%emt 0:01:52]} 2. e3 {[%emt 0:01:01]} g6 {[%emt 0:00:36]} 3. d4 {[%emt 0:02:26]} Bg7 {[%emt 0:00:09]} 4. dxc5 {[%emt 0:01:08] A40: Unusual replies to 1 d4} (4. c4 Nf6 5. Nc3 O-O 6. Be2 cxd4 7. exd4 d5 8. O-O Nc6 9. Bf4 dxc4 10. d5 Na5 11. Be5 Bf5 12. Qd4 Qb6 13. Rfe1 Rfd8 14. Rad1 Qxd4 15. Nxd4 Nxd5 16. Nxf5 Bxe5 17. Rxd5 Bxc3 18. Nxe7+ {1-0 (34) Ivanchuk,V (2704)-Dominguez Perez,L (2726) Beijing 2014}) 4... Qa5+ {[%emt 0:00:24]} 5. Nfd2 $146 {[%emt 0:04:08]} (5. c3 Qxc5 6. b4 Qc7 7. Bb2 Nf6 8. c4 a5 9. a3 axb4 10. axb4 Rxa1 11. Bxa1 Nc6 {½-½ (25) Slipak,S (2452)-Alonso,S (2508) Saenz Pena 2014}) 5... Qxc5 {[%emt 0:01:26]} 6. Ne4 {[%emt 0:00:26]} Qc7 {[%emt 0:07:35]} 7. Nbc3 {[%emt 0:00:30]} Nh6 {[%emt 0:09:56]} 8. Nd5 {[%emt 0:06:56]} Qd8 {[%emt 0:02:33]} 9. c4 {[%emt 0:00:25]} O-O {[%emt 0:03:53]} 10. Be2 {[%emt 0:01:21]} Nc6 {[%emt 0:04:45]} 11. O-O {[%emt 0:01:10]} d6 {[%emt 0:01:52]} 12. Nec3 {[%emt 0:06:48]} Bd7 {[%emt 0:06:12]} 13. Bd2 {[%emt 0:05:38]} Rc8 {[%emt 0:02:17]} 14. Rc1 {[%emt 0:00:45]} f5 {[%emt 0:02:04]} 15. b4 {[%emt 0:18:40]} e6 {[%emt 0:15:14]} 16. Nf4 $1 {[%emt 0:01:38]} Nf7 {[%emt 0:10:07]} 17. b5 {[%emt 0:04:39]} Nce5 {[%emt 0:05:09]} 18. Qb3 {[%emt 0:00:33]} b6 {[%emt 0:01:17]} 19. a4 {[%emt 0:02:04]} Qc7 {[%emt 0:03:08]} 20. c5 {[%emt 0:10:19]} dxc5 {[%emt 0:00:08]} 21. Nxe6 {[%emt 0:00:07]} Bxe6 {[%emt 0:01:01]} 22. Qxe6 {[%emt 0:00:06]} Kh8 {[%emt 0:03:02]} 23. f4 {[%emt 0:06:48]} Rcd8 {[%emt 0:01:47]} 24. Qa2 {[%emt 0:05:16]} Nd3 {[%emt 0:01:52]} 25. Rcd1 {[%emt 0:00:05]} c4 {[%emt 0:01:24]} 26. Bf3 {[%emt 0:03:28]} Qc5 {[%emt 0:00:57]} 27. a5 {[%emt 0:01:11]} Nb4 {[%emt 0:01:27]} 28. Qb2 {[%emt 0:00:57]} bxa5 {[%emt 0:00:56]} 29. Kh1 {[%emt 0:00:07]} Nd6 {[%emt 0:03:11]} 30. Qa3 {[%emt 0:01:38]} Nxb5 {[%emt 0:01:58]} 31. Qxa5 $2 {[%emt 0:02:22]} (31. Nxb5 $17 Qxb5 32. Bc3) 31... Rxd2 $1 {[%emt 0:00:32]} 32. Rxd2 {[%emt 0:05:20]} Bxc3 {[%emt 0:01:36]} 33. Rd8 {[%emt 0:00:05]} a6 {[%emt 0:01:57]} 34. Rc1 {[%emt 0:01:12]} Qe7 {[%emt 0:02:34]} 35. Rxf8+ {[%emt 0:01:02]} Qxf8 {[%emt 0:00:00]} 36. Rxc3 {[%emt 0:00:07]} Nxc3 {[%emt 0:00:39]} 37. Qe5+ {[%emt 0:00:06]} Qg7 {[%emt 0:01:44]} ({But not} 37... Kg8 $6 38. Qxc3 Qd6 39. Qxc4+ Kg7 40. h3 $16) 38. Qe8+ $11 {[%emt 0:01:46]} (38. Qd5 $2 {[%mdl 8192]}) 38... Qg8 {[%emt 0:00:02]} 39. Qe5+ {[%emt 0:00:05]} Qg7 {[%emt 0:00:01]} 40. Qe8+ {[%emt 0:00:10]} Qg8 {[%emt 0:00:13]} 41. Qe5+ {[%emt 0:00:02]} Qg7 {[%emt 0:00:10]} 1/2-1/2

[Event "FRA-ch Youth 2017"]
[Site "Belfort"]
[Date "2017.04.22"]
[Round "8"]
[White "Laurent-Paoli, Pierre"]
[Black "Flick, Antoine"]
[Result "0-1"]
[ECO "A11"]
[WhiteElo "2298"]
[BlackElo "2327"]
[Annotator "NA"]
[PlyCount "112"]
[EventDate "2017.??.??"]
[EventCountry "FRA"]
[SourceTitle "playchess.com"]
[Source "ChessBase"]
[SourceQuality "1"]
[TimeControl "5400+30"]

1. c4 {[%emt 0:00:00]} c6 {[%emt 0:05:12]} 2. Nf3 {[%emt 0:00:16]} d5 {[%emt 0:00:07]} 3. e3 {[%emt 0:00:05]} Bf5 {[%emt 0:00:38] A11: English Opening: 1...c6} (3... Nf6 4. d4 Bg4 5. h3 Bf5 6. Nc3 e6 7. g4 Bg6 8. Ne5 Nbd7 9. Nxg6 hxg6 10. g5 Ng8 11. h4 Ne7 12. Bd2 Nf5 13. Qg4 a6 14. O-O-O dxc4 15. Bxc4 c5 16. dxc5 Bxc5 {1-0 (29) So,W (2822)-Shabalov,A (2556) Saint Louis 2017}) 4. Qb3 {[%emt 0:03:26]} Qc7 {[%emt 0:00:51]} 5. cxd5 {[%emt 0:05:44]} cxd5 {[%emt 0:01:23]} 6. Nc3 {[%emt 0:00:10]} e6 {[%emt 0:01:01] LiveBook: 9 Games} 7. Nd4 {[%emt 0:11:53]} Bg6 {[%emt 0:07:43]} 8. Qa4+ $146 {[%emt 0:03:27]} (8. f4 Nf6 9. f5 Bxf5 10. Bb5+ {0-1 (35) Farley,T (2222)-Del Castilho,M (2083) Bridgetown 2005}) 8... Nd7 {[%emt 0:07:39]} 9. b3 {[%emt 0:07:49]} Ngf6 {[%emt 0:18:29]} 10. Ndb5 {[%emt 0:07:45] [#]} (10. Ba3 $11 {remains equal.}) 10... Qb8 $1 {[%emt 0:01:25]} 11. Qh4 {[%emt 0:29:36]} a6 {[%emt 0:08:27]} 12. Nd4 {[%emt 0:00:05]} Be7 {[%emt 0:06:37]} 13. Bb2 {[%emt 0:00:45]} Nc5 {[%emt 0:03:48]} (13... e5 $17 14. Nde2 Qd6) 14. Qg3 {[%emt 0:02:46]} ({White should try} 14. Qh3 $15) 14... e5 {[%emt 0:01:37]} 15. Nf3 {[%emt 0:00:41]} Bd6 {[%emt 0:02:11]} 16. Qh4 {[%emt 0:04:15]} Nd3+ {[%emt 0:04:44]} 17. Bxd3 {[%emt 0:00:06]} Bxd3 {[%emt 0:00:03]} 18. Rc1 {[%emt 0:00:51]} O-O {[%emt 0:01:47]} 19. Ne2 {[%emt 0:05:42]} a5 {[%emt 0:03:23]} 20. a3 {[%emt 0:03:43]} Re8 {[%emt 0:03:15]} 21. Rc3 {[%emt 0:03:35]} Ba6 {[%emt 0:01:26]} 22. d4 {[%emt 0:00:41]} exd4 $2 {[%emt 0:07:57]} ({Black should try} 22... e4 $19 23. Ne5 Rc8) 23. Qxd4 {[%emt 0:00:48]} Qd8 {[%emt 0:01:36]} 24. Qd1 {[%emt 0:02:02]} Qb6 {[%emt 0:02:03]} 25. Nfd4 {[%emt 0:01:24]} Rad8 {[%emt 0:01:52]} 26. Rc2 {[%emt 0:01:10]} Bb8 {[%emt 0:02:14]} 27. O-O {[%emt 0:01:02]} Qd6 {[%emt 0:00:58]} 28. g3 {[%emt 0:00:22]} Qd7 {[%emt 0:00:40]} 29. Kg2 {[%emt 0:01:19]} Ne4 {[%emt 0:01:01]} 30. Nf3 {[%emt 0:00:49]} Qe6 {[%emt 0:01:37]} 31. Bd4 {[%emt 0:01:47]} Qh6 {[%emt 0:01:20]} 32. Re1 {[%emt 0:00:33]} Bb5 {[%emt 0:00:40]} ({But not} 32... a4 33. bxa4 Bc4 34. Rb2 $11) 33. Nc3 {[%emt 0:01:18] [#]} Bd7 $1 {[%emt 0:00:30]} 34. Ng1 {[%emt 0:00:10]} Bf5 {[%emt 0:00:22]} 35. Rce2 {[%emt 0:00:25]} Ng5 {[%emt 0:01:02]} 36. h4 {[%emt 0:00:18]} Ne4 {[%emt 0:00:08]} 37. Rb2 {[%emt 0:00:52]} Qg6 {[%emt 0:01:23]} 38. Nce2 {[%emt 0:00:12]} Bd6 $11 {[%emt 0:00:37]} (38... Bg4 $17 {Threatens to win with ...Nxf2!} 39. Qa1 Rc8) 39. b4 {[%emt 0:00:10]} axb4 {[%emt 0:00:24]} 40. axb4 {[%emt 0:00:03]} Ra8 {[%emt 0:00:18]} 41. Nf4 {[%emt 0:00:17]} Bxf4 {[%emt 0:00:44]} 42. exf4 {[%emt 0:00:04]} Bg4 {[%emt 0:00:14]} 43. Qb3 {[%emt 0:00:45]} Be6 {[%emt 0:00:21]} 44. Qf3 {[%emt 0:00:35]} h5 {[%emt 0:00:39]} 45. Kh2 {[%emt 0:01:20]} Rec8 {[%emt 0:00:29]} 46. Qe3 {[%emt 0:01:19]} Rc4 {[%emt 0:00:35]} 47. Nf3 {[%emt 0:00:16]} Qf5 {[%emt 0:00:34]} 48. Ne5 {[%emt 0:00:09]} Rcc8 {[%emt 0:00:21]} 49. Nd3 {[%emt 0:00:49]} Ra3 {[%emt 0:00:28]} 50. Rd1 {[%emt 0:00:34]} Qg4 {[%emt 0:00:42]} 51. Rbb1 {[%emt 0:00:28]} Rc2 {[%emt 0:00:32]} 52. f5 {[%emt 0:00:24]} Bxf5 {[%emt 0:00:17]} 53. Rf1 {[%emt 0:00:30]} Nd2 {[%emt 0:00:49]} 54. Qe8+ {[%emt 0:00:32]} Kh7 {[%emt 0:00:03]} 55. Nf4 {[%emt 0:00:19]} Nf3+ {[%emt 0:00:14]} 56. Kh1 {[%emt 0:00:11]} Qxg3 {[%emt 0:00:46]} 0-1

[Event "FRA-ch Youth 2017"]
[Site "Belfort"]
[Date "2017.04.22"]
[Round "8"]
[White "Mohammad, Fahim"]
[Black "Bressy, Theo"]
[Result "0-1"]
[ECO "A04"]
[WhiteElo "2281"]
[BlackElo "2039"]
[Annotator "NA"]
[PlyCount "128"]
[EventDate "2017.??.??"]
[EventCountry "FRA"]
[SourceTitle "playchess.com"]
[Source "ChessBase"]
[SourceQuality "1"]
[TimeControl "5400+30"]

1. Nf3 {[%emt 0:06:43]} g6 {[%emt 0:00:04]} 2. g3 {[%emt 0:00:06]} Bg7 {[%emt 0:00:03]} 3. Bg2 {[%emt 0:00:04]} e5 {[%emt 0:00:03]} 4. d3 {[%emt 0:01:04]} Ne7 {[%emt 0:00:13]} 5. O-O {[%emt 0:00:12]} O-O {[%emt 0:00:03]} 6. c4 {[%emt 0:02:59]} d6 {[%emt 0:00:29]} 7. Nc3 {[%emt 0:00:52]} f5 {[%emt 0:00:12]} 8. Qc2 {[%emt 0:07:23] A21: English Opening: 1...e5 2 Nc3} Nd7 {[%emt 0:00:32]} (8... Na6 9. a3 c6 10. Rb1 Nc7 11. b4 h6 12. b5 g5 13. bxc6 bxc6 14. a4 Ne6 15. Ba3 a6 {0-1 (37) Corvi,M (2305)-Neverov,V (2507) Ortisei 2016}) 9. Rb1 {[%emt 0:00:18]} Nf6 {[%emt 0:00:03]} 10. b4 {[%emt 0:01:13]} h6 {[%emt 0:03:32]} 11. Bb2 {[%emt 0:12:13]} g5 {[%emt 0:02:09]} 12. c5 {[%emt 0:00:28]} Ng6 {[%emt 0:01:11]} 13. cxd6 {[%emt 0:01:08]} cxd6 {[%emt 0:00:18]} 14. Qb3+ $146 {[%emt 0:07:53]} (14. Nd2 Be6 15. Bxb7 {½-½ (53) Dornieden,M (2270)-Beszterczey,L (2115) Grieskirchen 1998}) 14... Kh8 {[%emt 0:03:23]} 15. Nd2 {[%emt 0:02:20]} Rb8 {[%emt 0:01:15]} 16. Rbc1 {[%emt 0:03:14]} b5 {[%emt 0:14:12]} 17. a4 {[%emt 0:02:48]} a6 {[%emt 0:04:30]} 18. axb5 {[%emt 0:01:09]} axb5 {[%emt 0:00:01]} 19. Qa2 {[%emt 0:01:13]} Bb7 {[%emt 0:02:37]} 20. e4 {[%emt 0:12:10]} Qd7 {[%emt 0:09:11]} 21. exf5 {[%emt 0:08:48]} Bxg2 {[%emt 0:00:29]} 22. Kxg2 {[%emt 0:00:16]} Qxf5 {[%emt 0:00:10]} 23. Nce4 $1 {[%emt 0:00:17]} Qd7 {[%emt 0:05:48]} 24. Qa6 {[%emt 0:05:32]} d5 {[%emt 0:04:10]} 25. Nc5 {[%emt 0:05:45]} Qg4 {[%emt 0:02:33]} 26. f3 {[%emt 0:00:42]} Qxb4 {[%emt 0:04:38]} 27. Ndb3 {[%emt 0:01:33]} Ra8 {[%emt 0:01:59]} 28. Qb7 {[%emt 0:00:22]} Ra2 {[%emt 0:08:42]} 29. Rf2 {[%emt 0:01:36]} g4 {[%emt 0:13:50]} 30. f4 {[%emt 0:11:01]} Rxb2 $2 {[%emt 0:08:07]} ({Much worse is} 30... exf4 31. Ne6 Ne7 32. gxf4 $11 (32. Nxf8 Qxb3 33. Ng6+ Kh7 34. Qxe7 Rxb2 35. Nxf4 Ne4 $16)) (30... Nh5 $1 $15 {keeps the upper hand.}) 31. Rxb2 {[%emt 0:00:05]} exf4 {[%emt 0:00:04] [#]} 32. Ne6 $2 {[%emt 0:00:43]} (32. Ra2 $1 $18) 32... f3+ {[%emt 0:00:12]} 33. Kf1 {[%emt 0:00:55]} Rg8 {[%emt 0:00:36]} 34. Rc8 {[%emt 0:00:56]} ({Better is} 34. Nxg7 $16 Qa3 35. Rd2 Rxg7 36. Qxb5) 34... Ne7 $1 {[%emt 0:05:14]} 35. Rxg8+ {[%emt 0:00:47]} Kxg8 {[%emt 0:01:17]} 36. Qb8+ {[%emt 0:00:39]} Kf7 $11 {[%emt 0:01:04]} 37. Qe5 {[%emt 0:00:41]} Ng6 {[%emt 0:03:22]} 38. Qc7+ {[%emt 0:01:11]} Ne7 {[%emt 0:01:21]} 39. Nxg7 {[%emt 0:00:36]} Kxg7 {[%emt 0:00:02]} 40. Qc5 {[%emt 0:00:33]} Qxc5 {[%emt 0:00:00]} 41. Nxc5 {[%emt 0:00:07]} Kg6 {[%emt 0:01:21]} 42. Rxb5 {[%emt 0:00:09]} Kf5 {[%emt 0:00:15]} 43. Rb6 {[%emt 0:00:57]} Ng6 {[%emt 0:00:44]} 44. Kf2 {[%emt 0:00:29]} Ne5 {[%emt 0:00:50]} 45. Ke3 {[%emt 0:00:32]} h5 {[%emt 0:00:23]} 46. Rd6 {[%emt 0:00:42]} Nf7 {[%emt 0:00:32]} 47. Ra6 {[%emt 0:00:07]} Ke5 {[%emt 0:00:54]} 48. Ne6 {[%emt 0:00:33]} d4+ {[%emt 0:00:27]} 49. Kf2 {[%emt 0:00:17]} Nd5 {[%emt 0:00:19]} 50. Nc5 {[%emt 0:00:44]} Nb4 {[%emt 0:01:01]} 51. Rb6 {[%emt 0:00:39]} Kd5 {[%emt 0:00:22]} 52. Rxb4 {[%emt 0:01:36]} Kxc5 {[%emt 0:00:01]} 53. Rc4+ {[%emt 0:00:10]} Kd5 {[%emt 0:00:07]} 54. Ra4 {[%emt 0:00:06]} Ne5 {[%emt 0:00:03]} 55. Ra5+ {[%emt 0:00:07]} Kd6 {[%emt 0:00:04]} 56. Ra6+ {[%emt 0:00:12]} Kd5 {[%emt 0:00:11]} 57. Ra5+ {[%emt 0:00:40]} Kd6 {[%emt 0:00:04]} 58. Ke1 {[%emt 0:01:42]} Nxd3+ {[%emt 0:00:08]} 59. Kd2 {[%emt 0:00:04]} Nc5 {[%emt 0:00:15]} 60. Ra8 {[%emt 0:00:17]} Kd5 {[%emt 0:01:47]} 61. Rh8 {[%emt 0:00:16]} Kc4 {[%emt 0:00:08]} 62. Rxh5 {[%emt 0:00:21]} Ne4+ {[%emt 0:00:31]} 63. Kc2 {[%emt 0:01:12]} d3+ {[%emt 0:00:47]} 64. Kd1 {[%emt 0:00:14]} Kd4 {[%emt 0:00:35]} 0-1

[Event "FRA-ch Youth 2017"]
[Site "Belfort"]
[Date "2017.04.22"]
[Round "8"]
[White "Tahay, Alexis"]
[Black "Daeschler, Florian"]
[Result "1-0"]
[ECO "C86"]
[WhiteElo "2239"]
[BlackElo "2124"]
[Annotator "NA"]
[PlyCount "65"]
[EventDate "2017.??.??"]
[EventCountry "FRA"]
[SourceTitle "playchess.com"]
[Source "ChessBase"]
[SourceQuality "1"]
[TimeControl "5400+30"]

1. e4 {[%emt 0:03:58]} e5 {[%emt 0:00:05]} 2. Nf3 {[%emt 0:00:03]} Nc6 {[%emt 0:00:04]} 3. Bb5 {[%emt 0:00:03]} a6 {[%emt 0:00:05]} 4. Ba4 {[%emt 0:00:02]} Nf6 {[%emt 0:00:03]} 5. O-O {[%emt 0:00:03]} Be7 {[%emt 0:00:04]} 6. Qe2 {[%emt 0:00:59]} b5 {[%emt 0:00:08]} 7. Bb3 {[%emt 0:00:03]} O-O {[%emt 0:00:51]} 8. c3 {[%emt 0:00:13]} d5 {[%emt 0:12:34]} 9. d3 {[%emt 0:00:03]} dxe4 {[%emt 0:05:10] LiveBook: 9 Games C86: Closed Ruy Lopez: Worrall Attack} (9... Bb7 10. Nbd2 Re8 11. Rd1 Bf8 12. Nf1 Na5 13. Bc2 c5 14. Bg5 Qb6 15. Ne3 d4 16. Nf5 h6 17. Bd2 dxc3 18. bxc3 c4 19. Be3 cxd3 20. Bxd3 Qc6 21. Nd2 Qxc3 22. Rdc1 Qa3 23. Nb1 Qa4 24. Nc3 Qa3 25. Nb1 Qa4 {½-½ (25) Smirin,I (2650)-Stefansson,H (2573) Jerusalem 2015}) 10. dxe4 {[%emt 0:00:02]} Qe8 {[%emt 0:00:12]} 11. Bg5 $146 {[%emt 0:03:03]} (11. Re1 Bg4 12. Nbd2 Bc5 13. Nf1 Nh5 14. h3 Be6 15. Ng5 g6 16. Nxe6 fxe6 17. Be3 {½-½ (32) Wilson,B (2074)-Hassan,A (2167) Baku 2016}) 11... Nd7 {[%emt 0:08:35]} 12. Nbd2 {[%emt 0:08:18]} Nd8 {[%emt 0:06:08]} 13. Rfd1 {[%emt 0:07:16]} Bxg5 {[%emt 0:10:22]} 14. Nxg5 {[%emt 0:00:01]} Qe7 {[%emt 0:00:17]} 15. Ngf3 {[%emt 0:06:59]} Rb8 {[%emt 0:05:48]} 16. Nf1 {[%emt 0:00:47]} Nc5 {[%emt 0:01:04]} 17. Qe3 {[%emt 0:06:19]} Rb6 {[%emt 0:05:14]} 18. Ng3 {[%emt 0:05:24]} Rf6 {[%emt 0:12:34]} (18... g6 $11 {remains equal.}) 19. Qg5 {[%emt 0:07:21]} ({White should play} 19. Nh4 $16) 19... Nxb3 {[%emt 0:05:37]} 20. Nh5 {[%emt 0:09:02]} Ne6 {[%emt 0:00:19]} 21. Nxf6+ {[%emt 0:00:03]} Kh8 {[%emt 0:00:12]} 22. Qh4 {[%emt 0:00:11]} gxf6 {[%emt 0:00:51]} 23. axb3 {[%emt 0:00:05]} Nf4 {[%emt 0:01:12]} 24. Ne1 {[%emt 0:06:27]} Rg8 {[%emt 0:01:19] [#]} 25. f3 $1 {[%emt 0:01:12]} Rg6 {[%emt 0:07:41]} 26. Rd2 {[%emt 0:02:23]} Nh3+ {[%emt 0:06:17]} 27. Kh1 {[%emt 0:03:43]} Qc5 {[%emt 0:00:09]} 28. Nd3 {[%emt 0:03:53]} Qe3 {[%emt 0:03:27]} 29. Qe1 {[%emt 0:00:13]} Qg5 {[%emt 0:05:40]} (29... Qxe1+ $142 30. Rxe1 Nf4 31. Nxf4 exf4) 30. gxh3 {[%emt 0:00:27]} Bxh3 {[%emt 0:00:13]} 31. Qf2 {[%emt 0:00:17]} Qh5 {[%emt 0:01:41]} 32. Rg1 {[%emt 0:00:37]} Rxg1+ $18 {[%emt 0:00:38]} 33. Kxg1 {[%emt 0:00:02]} 1-0